[Event "26th Abu Dhabi Master 2019"]
[Site "Abu Dhabi"]
[Date "2019.08.07"]
[Round "6.69"]
[White "Arjun C Krishnamachari"]
[Black "Tabada, Jobannie C."]
[Result "0-1"]
[ECO "B51"]
[WhiteElo "2212"]
[BlackElo "2216"]
[Annotator "NA"]
[PlyCount "152"]
[EventDate "2019.08.02"]
[EventType "swiss"]
[EventCountry "UAE"]
[SourceTitle "playchess.com"]
[Source "ChessBase"]
[SourceQuality "1"]
[TimeControl "5400+30"]

1. e4 {[%emt 0:01:21]} c5 {[%emt 0:00:00]} 2. Nf3 {[%emt 0:00:09]} d6 {[%emt 0:00:00]} 3. Bb5+ {[%emt 0:00:06]} Nd7 {[%emt 0:00:00]} 4. O-O {[%emt 0:00:08]} g6 {[%emt 0:01:09]} 5. Re1 {[%emt 0:00:10]} Bg7 {[%emt 0:00:11]} 6. c3 {[%emt 0:00:09]} a6 {[%emt 0:00:37]} 7. Bf1 {[%emt 0:00:06]} Ngf6 {[%emt 0:00:43]} 8. d4 {[%emt 0:00:13]} O-O {[%emt 0:01:12]} 9. a4 {[%emt 0:04:36]} Qc7 {[%emt 0:01:14]} 10. h3 {[%emt 0:01:21]} b6 {[%emt 0:05:03]} 11. Bf4 {[%emt 0:00:40]} e5 {[%emt 0:00:52]} 12. dxe5 {[%emt 0:01:24]} dxe5 {[%emt 0:01:19]} 13. Bh2 {[%emt 0:00:47]} Bb7 {[%emt 0:00:02]} 14. Qc2 {[%emt 0:00:44]} Rfe8 {[%emt 0:01:17]} 15. Nbd2 {[%emt 0:03:08]} Qc6 {[%emt 0:01:16]} 16. Qb3 {[%emt 0:01:11]} Re7 {[%emt 0:21:34]} 17. Rad1 {[%emt 0:02:35]} Qc7 {[%emt 0:03:36]} 18. Bc4 {[%emt 0:15:03]} Rf8 {[%emt 0:00:49]} 19. Qc2 {[%emt 0:03:05]} Qc8 {[%emt 0:07:19]} 20. Nf1 {[%emt 0:11:22]} Qa8 {[%emt 0:02:58]} 21. N1d2 {[%emt 0:00:13]} Bc6 {[%emt 0:01:28]} 22. Qd3 {[%emt 0:18:27]} Bb7 {[%emt 0:10:01]} 23. Qc2 {[%emt 0:08:16]} Bc6 {[%emt 0:00:09]} 24. Qd3 {[%emt 0:02:24]} Bb7 {[%emt 0:02:04]} 25. Qc2 {[%emt 0:04:25]} h6 {[%emt 0:01:53]} 26. Bd3 {[%emt 0:01:20]} Ne8 {[%emt 0:06:02]} 27. Nf1 {[%emt 0:02:11]} Bc6 {[%emt 0:04:43]} 28. Ne3 {[%emt 0:01:12]} Nc7 {[%emt 0:05:52]} 29. c4 {[%emt 0:01:09]} Ne6 {[%emt 0:02:10]} 30. Nd5 {[%emt 0:00:27]} Ree8 {[%emt 0:02:26]} 31. Bg3 {[%emt 0:01:32]} Qb8 {[%emt 0:00:25]} 32. Rb1 {[%emt 0:00:48]} a5 {[%emt 0:01:00]} 33. b3 {[%emt 0:00:15]} Bb7 {[%emt 0:04:34]} 34. Rbd1 {[%emt 0:01:12]} Kh7 {[%emt 0:00:02]} 35. Nc3 {[%emt 0:00:53]} Bc6 {[%emt 0:01:03]} 36. Bf1 {[%emt 0:01:45]} Rd8 {[%emt 0:02:58]} 37. Nd5 {[%emt 0:00:25]} Rfe8 {[%emt 0:02:46]} 38. Qc1 {[%emt 0:02:27]} Qb7 {[%emt 0:00:07]} 39. Bh4 {[%emt 0:01:23]} f6 {[%emt 0:00:15]} 40. Qc2 {[%emt 0:00:45]} g5 {[%emt 0:01:28]} 41. Bg3 {[%emt 0:00:02]} Nb8 {[%emt 0:00:02]} 42. Bd3 {[%emt 0:01:34]} Bd7 {[%emt 0:00:18]} 43. Qe2 {[%emt 0:00:56]} Nc6 {[%emt 0:00:09]} 44. Nh2 {[%emt 0:04:07]} Ned4 {[%emt 0:00:23]} 45. Qb2 {[%emt 0:01:45]} Rf8 {[%emt 0:00:09]} 46. Qb1 {[%emt 0:00:26]} Rf7 {[%emt 0:01:50]} 47. f3 {[%emt 0:00:36]} Rdf8 {[%emt 0:00:48]} 48. Ng4 {[%emt 0:00:16]} h5 {[%emt 0:00:43]} 49. Nge3 {[%emt 0:00:01]} Rg8 {[%emt 0:00:27]} 50. Nf5 {[%emt 0:00:46]} Bf8 {[%emt 0:00:38]} 51. Nxd4 {[%emt 0:02:38]} Nxd4 {[%emt 0:00:11]} 52. Bf2 {[%emt 0:00:01]} Rg6 {[%emt 0:01:01]} 53. Bxd4 {[%emt 0:00:18]} cxd4 {[%emt 0:00:02]} 54. g4 {[%emt 0:00:16]} Rh6 {[%emt 0:00:24]} 55. Kg2 {[%emt 0:00:14]} Kh8 {[%emt 0:00:47]} 56. Rh1 {[%emt 0:00:14]} Be6 {[%emt 0:00:57]} 57. Qc2 {[%emt 0:00:25]} Rfh7 {[%emt 0:01:33]} 58. Rb1 {[%emt 0:00:40]} Kg7 {[%emt 0:00:13]} 59. Qe2 {[%emt 0:00:38]} Bc5 {[%emt 0:00:32]} 60. Rh2 {[%emt 0:02:10]} Qc8 {[%emt 0:00:48]} 61. Rbh1 {[%emt 0:00:32]} Qh8 {[%emt 0:00:12]} 62. Kg1 {[%emt 0:01:26]} Ba3 {[%emt 0:01:08]} 63. Qg2 {[%emt 0:01:09]} Bc1 {[%emt 0:00:22]} 64. Nc7 {[%emt 0:00:15]} Bd7 {[%emt 0:01:58]} 65. Kf1 {[%emt 0:00:21]} Bf4 {[%emt 0:00:14]} 66. c5 {[%emt 0:00:55]} Qb8 {[%emt 0:01:00]} 67. cxb6 {[%emt 0:00:26]} Qxb6 {[%emt 0:00:03]} 68. Nb5 {[%emt 0:00:01]} Qc5 {[%emt 0:00:43]} 69. Qc2 {[%emt 0:00:01]} Qe7 {[%emt 0:01:26]} 70. Rg2 {[%emt 0:01:10]} hxg4 {[%emt 0:00:02]} 71. fxg4 {[%emt 0:00:01]} Rxh3 {[%emt 0:00:02]} 72. Rxh3 {[%emt 0:00:00]} Rxh3 {[%emt 0:00:01]} 73. Kf2 {[%emt 0:01:20]} Kg6 {[%emt 0:00:34]} 74. Nc7 {[%emt 0:00:42]} Qh7 {[%emt 0:00:19]} 75. Nd5 {[%emt 0:00:49]} Qh4+ {[%emt 0:00:04]} 76. Kf1 {[%emt 0:00:31]} Rh1+ {[%emt 0:00:15]} 0-1

[Event "26th Abu Dhabi Master 2019"]
[Site "Abu Dhabi"]
[Date "2019.08.07"]
[Round "6.70"]
[White "Ajay Karthikeyan"]
[Black "Mohamed, Faisal"]
[Result "1-0"]
[ECO "A45"]
[WhiteElo "2216"]
[BlackElo "2150"]
[Annotator "NA"]
[PlyCount "101"]
[EventDate "2019.08.02"]
[EventType "swiss"]
[EventCountry "UAE"]
[SourceTitle "playchess.com"]
[Source "ChessBase"]
[SourceQuality "1"]
[TimeControl "5400+30"]

1. d4 {[%emt 0:00:00]} Nf6 {[%emt 0:03:53]} 2. Bf4 {[%emt 0:00:00]} c5 {[%emt 0:01:02]} 3. d5 {[%emt 0:00:00]} d6 {[%emt 0:00:25]} 4. Nc3 {[%emt 0:00:00]} e5 {[%emt 0:00:28]} 5. Bc1 {[%emt 0:03:57]} Be7 {[%emt 0:07:10]} 6. e4 {[%emt 0:00:20]} O-O {[%emt 0:00:42]} 7. Bd3 {[%emt 0:07:51]} Na6 {[%emt 0:08:42]} 8. Nge2 {[%emt 0:02:58]} Nc7 {[%emt 0:07:28]} 9. a4 {[%emt 0:01:19]} Nfe8 {[%emt 0:04:22]} 10. O-O {[%emt 0:04:06]} Bg5 {[%emt 0:04:22]} 11. f4 {[%emt 0:08:40]} exf4 {[%emt 0:00:30]} 12. Nxf4 {[%emt 0:00:03]} g6 {[%emt 0:03:27]} 13. Nce2 {[%emt 0:07:27]} Ng7 {[%emt 0:06:22]} 14. Ng3 {[%emt 0:09:14]} Bd7 {[%emt 0:07:38]} 15. Bd2 {[%emt 0:03:29]} Bf6 {[%emt 0:04:51]} 16. c3 {[%emt 0:01:19]} Be5 {[%emt 0:03:43]} 17. Nfe2 {[%emt 0:06:55]} Qh4 {[%emt 0:01:55]} 18. Qc1 {[%emt 0:01:26]} f6 {[%emt 0:09:41]} 19. Bf4 {[%emt 0:07:27]} Bxf4 {[%emt 0:04:04]} 20. Qxf4 {[%emt 0:03:43]} Qxf4 {[%emt 0:00:08]} 21. Rxf4 {[%emt 0:00:27]} f5 {[%emt 0:03:25]} 22. exf5 {[%emt 0:00:32]} Nxf5 {[%emt 0:00:09]} 23. Nxf5 {[%emt 0:03:36]} Bxf5 {[%emt 0:00:17]} 24. Bxf5 {[%emt 0:00:06]} Rxf5 {[%emt 0:00:10]} 25. Rxf5 {[%emt 0:00:07]} gxf5 {[%emt 0:00:09]} 26. Ng3 {[%emt 0:03:05]} Nxd5 {[%emt 0:01:57]} 27. Nxf5 {[%emt 0:00:30]} Rd8 {[%emt 0:00:42]} 28. Rd1 {[%emt 0:06:44]} Nb6 {[%emt 0:02:25]} 29. b3 {[%emt 0:01:36]} Nc8 {[%emt 0:01:34]} 30. g4 {[%emt 0:03:33]} Kf7 {[%emt 0:01:29]} 31. Kg2 {[%emt 0:02:42]} Ke6 {[%emt 0:02:14]} 32. Kf3 {[%emt 0:01:04]} Kd7 {[%emt 0:05:27]} 33. Kf4 {[%emt 0:01:38]} Kc6 {[%emt 0:00:25]} 34. h4 {[%emt 0:01:49]} Rd7 {[%emt 0:03:17]} 35. h5 {[%emt 0:01:33]} Ne7 {[%emt 0:01:50]} 36. c4 {[%emt 0:05:39]} Kc7 {[%emt 0:00:34]} 37. g5 {[%emt 0:01:10]} Nxf5 {[%emt 0:00:54]} 38. Kxf5 {[%emt 0:00:02]} Rf7+ {[%emt 0:00:14]} 39. Ke6 {[%emt 0:01:17]} Rf3 {[%emt 0:00:21]} 40. Rg1 {[%emt 0:00:53]} Rxb3 {[%emt 0:00:50]} 41. Kf7 {[%emt 0:00:23]} Rh3 {[%emt 0:00:25]} 42. h6 {[%emt 0:00:10]} Re3 {[%emt 0:00:31]} 43. g6 {[%emt 0:00:30]} hxg6 {[%emt 0:00:28]} 44. Rh1 {[%emt 0:00:01]} Rf3+ {[%emt 0:00:43]} 45. Kg7 {[%emt 0:00:00]} Re3 {[%emt 0:00:32]} 46. h7 {[%emt 0:00:35]} Re8 {[%emt 0:00:30]} 47. Kxg6 {[%emt 0:00:59]} a6 {[%emt 0:00:22]} 48. a5 {[%emt 0:01:13]} b6 {[%emt 0:00:35]} 49. axb6+ {[%emt 0:00:28]} Kxb6 {[%emt 0:00:04]} 50. h8=Q {[%emt 0:00:03]} Rxh8 {[%emt 0:00:16]} 51. Rxh8 {[%emt 0:00:01]} 1-0

[Event "26th Abu Dhabi Master 2019"]
[Site "Abu Dhabi"]
[Date "2019.08.07"]
[Round "6.71"]
[White "Soham Datar"]
[Black "Wang, Shanshan"]
[Result "1/2-1/2"]
[ECO "A06"]
[WhiteElo "2129"]
[BlackElo "2122"]
[Annotator "NA"]
[PlyCount "179"]
[EventDate "2019.08.02"]
[EventType "swiss"]
[EventCountry "UAE"]
[SourceTitle "playchess.com"]
[Source "ChessBase"]
[SourceQuality "1"]
[TimeControl "5400+30"]

1. Nf3 {[%emt 0:00:29]} d5 {[%emt 0:00:59]} 2. b3 {[%emt 0:00:13]} Nf6 {[%emt 0:00:16]} 3. Bb2 {[%emt 0:00:05]} e6 {[%emt 0:00:22]} 4. g3 {[%emt 0:00:07]} Be7 {[%emt 0:00:05]} 5. Bg2 {[%emt 0:00:03]} c5 {[%emt 0:00:25]} 6. e3 {[%emt 0:00:34]} Nc6 {[%emt 0:00:11]} 7. O-O {[%emt 0:00:17]} O-O {[%emt 0:00:16]} 8. c4 {[%emt 0:00:03]} Qb6 {[%emt 0:08:05]} 9. cxd5 {[%emt 0:07:24]} exd5 {[%emt 0:00:18]} 10. Nc3 {[%emt 0:05:40]} Bf5 {[%emt 0:04:46]} 11. d4 {[%emt 0:02:16]} c4 {[%emt 0:04:10]} 12. Ne5 {[%emt 0:01:25]} Rfd8 {[%emt 0:01:53]} 13. Na4 {[%emt 0:10:33]} Qa6 {[%emt 0:02:57]} 14. Nxc6 {[%emt 0:07:53]} bxc6 {[%emt 0:00:34]} 15. f3 {[%emt 0:05:16]} cxb3 {[%emt 0:02:17]} 16. axb3 {[%emt 0:00:07]} Qd3 {[%emt 0:00:09]} 17. Qxd3 {[%emt 0:01:36]} Bxd3 {[%emt 0:00:07]} 18. Rfc1 {[%emt 0:01:13]} Rab8 {[%emt 0:03:37]} 19. Ba3 {[%emt 0:00:09]} Bxa3 {[%emt 0:02:29]} 20. Rxa3 {[%emt 0:01:02]} Bb5 {[%emt 0:00:46]} 21. Nc5 {[%emt 0:00:49]} Nd7 {[%emt 0:01:06]} 22. Bh3 {[%emt 0:07:14]} Nxc5 {[%emt 0:00:50]} 23. Rxc5 {[%emt 0:00:01]} g6 {[%emt 0:06:42]} 24. Kf2 {[%emt 0:03:46]} Rb7 {[%emt 0:01:43]} 25. Bg2 {[%emt 0:01:37]} Kf8 {[%emt 0:02:23]} 26. g4 {[%emt 0:01:44]} h6 {[%emt 0:02:11]} 27. h4 {[%emt 0:00:08]} Ke7 {[%emt 0:06:15]} 28. Rc1 {[%emt 0:02:57]} Rdd7 {[%emt 0:07:30]} 29. g5 {[%emt 0:00:24]} hxg5 {[%emt 0:01:16]} 30. hxg5 {[%emt 0:00:04]} f6 {[%emt 0:00:06]} 31. gxf6+ {[%emt 0:01:46]} Kxf6 {[%emt 0:00:02]} 32. Bf1 {[%emt 0:01:11]} Rb6 {[%emt 0:07:25]} 33. Bxb5 {[%emt 0:01:49]} cxb5 {[%emt 0:00:02]} 34. b4 {[%emt 0:00:10]} a6 {[%emt 0:00:32]} 35. Rac3 {[%emt 0:00:33]} Re7 {[%emt 0:08:53]} 36. Rc5 {[%emt 0:00:44]} Rd6 {[%emt 0:00:10]} 37. Ke2 {[%emt 0:00:39]} Ree6 {[%emt 0:07:06]} 38. Kd3 {[%emt 0:00:11]} Rd8 {[%emt 0:05:08]} 39. Rc6 {[%emt 0:00:55]} Ke7 {[%emt 0:05:08]} 40. e4 {[%emt 0:02:43]} dxe4+ {[%emt 0:03:33]} 41. fxe4 {[%emt 0:00:06]} Rxc6 {[%emt 0:00:40]} 42. Rxc6 {[%emt 0:00:04]} Rd6 {[%emt 0:00:03]} 43. Rc7+ {[%emt 0:00:58]} Rd7 {[%emt 0:00:17]} 44. Rc5 {[%emt 0:00:06]} Ra7 {[%emt 0:00:28]} 45. e5 {[%emt 0:00:34]} a5 {[%emt 0:01:46]} 46. bxa5 {[%emt 0:00:05]} Rxa5 {[%emt 0:00:03]} 47. Ke4 {[%emt 0:00:11]} g5 {[%emt 0:00:31]} 48. Rc7+ {[%emt 0:00:32]} Kd8 {[%emt 0:00:11]} 49. Rg7 {[%emt 0:00:10]} b4 {[%emt 0:00:15]} 50. Rxg5 {[%emt 0:02:28]} b3 {[%emt 0:00:11]} 51. Rg1 {[%emt 0:04:58]} b2 {[%emt 0:04:45]} 52. Rb1 {[%emt 0:00:13]} Ra2 {[%emt 0:00:04]} 53. Kd3 {[%emt 0:07:29]} Kd7 {[%emt 0:00:16]} 54. Kc4 {[%emt 0:00:32]} Ke6 {[%emt 0:03:19]} 55. Kb3 {[%emt 0:00:40]} Ra5 {[%emt 0:00:55]} 56. Rxb2 {[%emt 0:01:04]} Kd5 {[%emt 0:00:04]} 57. Kc3 {[%emt 0:00:48]} Ra1 {[%emt 0:00:15]} 58. Rb5+ {[%emt 0:00:33]} Ke4 {[%emt 0:00:20]} 59. e6 {[%emt 0:00:20]} Rc1+ {[%emt 0:00:32]} 60. Kd2 {[%emt 0:00:52]} Rc8 {[%emt 0:00:03]} 61. d5 {[%emt 0:00:28]} Ke5 {[%emt 0:00:07]} 62. Kd3 {[%emt 0:03:49]} Rc7 {[%emt 0:00:02]} 63. Kd2 {[%emt 0:00:41]} Rc8 {[%emt 0:00:01]} 64. Ra5 {[%emt 0:00:17]} Rc7 {[%emt 0:00:02]} 65. Ke3 {[%emt 0:01:14]} Rc3+ {[%emt 0:00:04]} 66. Kd2 {[%emt 0:00:52]} Rc7 {[%emt 0:00:01]} 67. Ke2 {[%emt 0:00:08]} Rc8 {[%emt 0:00:16]} 68. Kf3 {[%emt 0:00:16]} Rg8 {[%emt 0:00:13]} 69. Rb5 {[%emt 0:01:30]} Rg7 {[%emt 0:00:11]} 70. Ke3 {[%emt 0:02:35]} Rh7 {[%emt 0:00:47]} 71. Ke2 {[%emt 0:03:39]} Rg7 {[%emt 0:00:58]} 72. Kd1 {[%emt 0:00:11]} Rc7 {[%emt 0:00:08]} 73. Ra5 {[%emt 0:00:26]} Rc8 {[%emt 0:00:09]} 74. Kd2 {[%emt 0:00:11]} Rc7 {[%emt 0:00:04]} 75. Ke3 {[%emt 0:00:04]} Rc8 {[%emt 0:00:20]} 76. Kf2 {[%emt 0:00:47]} Rg8 {[%emt 0:00:01]} 77. Rc5 {[%emt 0:01:10]} Kd6 {[%emt 0:00:19]} 78. Ra5 {[%emt 0:01:29]} Ke5 {[%emt 0:00:01]} 79. Kf3 {[%emt 0:00:40]} Rg7 {[%emt 0:00:01]} 80. Ra6 {[%emt 0:00:42]} Rg8 {[%emt 0:02:01]} 81. Ke3 {[%emt 0:01:26]} Rg7 {[%emt 0:01:02]} 82. Rb6 {[%emt 0:00:30]} Rg8 {[%emt 0:00:33]} 83. Ra6 {[%emt 0:00:23]} Rg7 {[%emt 0:00:01]} 84. d6 {[%emt 0:01:06]} Kxe6 {[%emt 0:00:23]} 85. d7+ {[%emt 0:00:18]} Ke7 {[%emt 0:00:42]} 86. Ra7 {[%emt 0:00:49]} Rg6 {[%emt 0:00:32]} 87. Ke4 {[%emt 0:00:34]} Rd6 {[%emt 0:00:10]} 88. Ke5 {[%emt 0:00:06]} Rxd7 {[%emt 0:00:06]} 89. Rxd7+ {[%emt 0:00:10]} Kxd7 {[%emt 0:00:01]} 90. Ke4 1/2-1/2

[Event "26th Abu Dhabi Master 2019"]
[Site "Abu Dhabi"]
[Date "2019.08.07"]
[Round "6.72"]
[White "Krzywda, Andrzej"]
[Black "Ammar, Sedrani"]
[Result "1-0"]
[ECO "D06"]
[WhiteElo "2190"]
[BlackElo "2024"]
[Annotator "NA"]
[PlyCount "53"]
[EventDate "2019.08.02"]
[EventType "swiss"]
[EventCountry "UAE"]
[SourceTitle "playchess.com"]
[Source "ChessBase"]
[SourceQuality "1"]
[TimeControl "5400+30"]

1. d4 {[%emt 0:00:00]} d5 {[%emt 0:00:00]} 2. c4 {[%emt 0:00:00]} Bf5 {[%emt 0:00:00]} 3. Qb3 {[%emt 0:01:54]} dxc4 {[%emt 0:08:13]} 4. Qxb7 {[%emt 0:06:43]} Nd7 {[%emt 0:00:15]} 5. Nc3 {[%emt 0:00:51]} Ngf6 {[%emt 0:16:50]} 6. Nf3 {[%emt 0:04:23]} e6 {[%emt 0:08:26]} 7. e3 {[%emt 0:09:11]} Rb8 {[%emt 0:05:13]} 8. Qc6 {[%emt 0:07:09]} Bb4 {[%emt 0:00:51]} 9. Bd2 {[%emt 0:01:47]} O-O {[%emt 0:01:31]} 10. Bxc4 {[%emt 0:04:57]} Nb6 {[%emt 0:08:19]} 11. Be2 {[%emt 0:05:55]} Nbd5 {[%emt 0:16:51]} 12. O-O {[%emt 0:04:22]} Bxc3 {[%emt 0:01:14]} 13. Bxc3 {[%emt 0:02:44]} Ne4 {[%emt 0:05:51]} 14. Rac1 {[%emt 0:07:03]} Nexc3 {[%emt 0:03:55]} 15. bxc3 {[%emt 0:00:36]} Rb2 {[%emt 0:00:16]} 16. Rfe1 {[%emt 0:03:27]} Rxa2 {[%emt 0:02:49]} 17. Bc4 {[%emt 0:02:18]} Rb2 {[%emt 0:00:45]} 18. e4 {[%emt 0:01:58]} Ne7 {[%emt 0:01:40]} 19. Qc5 {[%emt 0:01:17]} Bg6 {[%emt 0:00:44]} 20. Qxa7 {[%emt 0:02:16]} Qa8 {[%emt 0:01:07]} 21. Qc5 {[%emt 0:03:02]} Bxe4 {[%emt 0:00:37]} 22. Qxe7 {[%emt 0:05:18]} Bxf3 {[%emt 0:00:08]} 23. gxf3 {[%emt 0:00:46]} Qxf3 {[%emt 0:00:04]} 24. Qh4 {[%emt 0:00:42]} Ra8 {[%emt 0:01:39]} 25. Re3 {[%emt 0:01:36]} Qc6 {[%emt 0:01:05]} 26. Bd3 {[%emt 0:00:58]} f5 {[%emt 0:00:22]} 27. Rce1 {[%emt 0:02:18]} 1-0

[Event "26th Abu Dhabi Master 2019"]
[Site "Abu Dhabi"]
[Date "2019.08.07"]
[Round "6.73"]
[White "Srihari L"]
[Black "Haase, Pavel"]
[Result "1-0"]
[ECO "B06"]
[WhiteElo "2101"]
[BlackElo "2160"]
[Annotator "NA"]
[PlyCount "29"]
[EventDate "2019.08.02"]
[EventType "swiss"]
[EventCountry "UAE"]
[SourceTitle "playchess.com"]
[Source "ChessBase"]
[SourceQuality "1"]
[TimeControl "5400+30"]

1. e4 d6 2. d4 g6 3. Nc3 Bg7 4. f4 c6 5. Nf3 Bg4 6. Be2 Qb6 7. e5 Nd7 8. a4 a5 9. Ra3 Rd8 10. exd6 exd6 11. Rb3 Qc7 12. Ne4 Ne7 13. Rxb7 Qxb7 14. Nxd6+ Kf8 15. Nxb7 1-0

[Event "26th Abu Dhabi Master 2019"]
[Site "Abu Dhabi"]
[Date "2019.08.07"]
[Round "6.74"]
[White "Thrish Karthik"]
[Black "Davainis, Marius"]
[Result "1/2-1/2"]
[ECO "B28"]
[WhiteElo "2075"]
[BlackElo "2105"]
[Annotator "NA"]
[PlyCount "45"]
[EventDate "2019.08.02"]
[EventType "swiss"]
[EventCountry "UAE"]
[SourceTitle "playchess.com"]
[Source "ChessBase"]
[SourceQuality "1"]
[TimeControl "5400+30"]

1. e4 {[%emt 0:00:00]} c5 {[%emt 0:00:16]} 2. Nf3 {[%emt 0:00:20]} a6 {[%emt 0:00:12]} 3. c4 {[%emt 0:00:54]} d6 {[%emt 0:00:25]} 4. d4 {[%emt 0:02:08]} cxd4 {[%emt 0:00:08]} 5. Nxd4 {[%emt 0:00:05]} Nf6 {[%emt 0:00:16]} 6. Nc3 {[%emt 0:00:05]} e6 {[%emt 0:00:11]} 7. Be2 {[%emt 0:00:55]} Be7 {[%emt 0:00:07]} 8. O-O {[%emt 0:01:24]} O-O {[%emt 0:00:08]} 9. Be3 {[%emt 0:00:03]} Qc7 {[%emt 0:01:25]} 10. a3 {[%emt 0:02:07]} b6 {[%emt 0:02:22]} 11. Rc1 {[%emt 0:00:34]} Bb7 {[%emt 0:00:24]} 12. f3 {[%emt 0:00:15]} Nbd7 {[%emt 0:00:49]} 13. b4 {[%emt 0:02:22]} Rac8 {[%emt 0:03:07]} 14. Qd2 {[%emt 0:01:26]} Qb8 {[%emt 0:05:44]} 15. Rc2 {[%emt 0:08:11]} Rfe8 {[%emt 0:07:42]} 16. Kh1 {[%emt 0:06:40]} Qa8 {[%emt 0:11:36]} 17. Na4 {[%emt 0:13:59]} Bc6 {[%emt 0:10:19]} 18. Nc3 {[%emt 0:02:27]} Bb7 {[%emt 0:05:37]} 19. Rd1 {[%emt 0:07:27]} Bf8 {[%emt 0:25:01]} 20. Na4 {[%emt 0:13:14]} Bc6 {[%emt 0:00:40]} 21. Nc3 {[%emt 0:01:26]} Bb7 {[%emt 0:00:15]} 22. Na4 {[%emt 0:02:13]} Bc6 {[%emt 0:00:05]} 23. Nc3 {[%emt 0:00:22]} 1/2-1/2

[Event "26th Abu Dhabi Master 2019"]
[Site "Abu Dhabi"]
[Date "2019.08.08"]
[Round "7.1"]
[White "Ni, Hua"]
[Black "Jobava, Baadur"]
[Result "1/2-1/2"]
[ECO "D17"]
[WhiteElo "2668"]
[BlackElo "2594"]
[Annotator "ChessBase"]
[PlyCount "75"]
[EventDate "2019.08.02"]
[EventType "swiss"]
[EventCountry "UAE"]
[SourceTitle "playchess.com"]
[Source "ChessBase"]
[SourceQuality "1"]
[TimeControl "5400+30"]

1. d4 {[%emt 0:00:00]} d5 {[%emt 0:00:00]} 2. c4 {[%emt 0:00:00]} c6 {[%emt 0:00:03]} 3. Nf3 {[%emt 0:00:00]} Nf6 {[%emt 0:00:07]} 4. Nc3 {[%emt 0:00:07]} dxc4 {[%emt 0:00:07]} 5. a4 {[%emt 0:00:03]} Bf5 {[%emt 0:00:06]} 6. Ne5 {[%emt 0:00:25]} Na6 {[%emt 0:00:05]} 7. e3 {[%emt 0:01:42]} Nb4 {[%emt 0:00:04]} 8. Bxc4 {[%emt 0:00:08]} e6 {[%emt 0:00:02]} 9. O-O {[%emt 0:00:15]} Bd6 {[%emt 0:00:02]} 10. Qe2 {[%emt 0:05:47]} h6 {[%emt 0:00:06]} 11. e4 {[%emt 0:00:03]} Bh7 {[%emt 0:00:03]} 12. Bf4 {[%emt 0:01:10]} O-O {[%emt 0:00:46]} 13. Rad1 {[%emt 0:00:04]} Qc7 {[%emt 0:01:28]} 14. Bg3 {[%emt 0:03:48]} Rae8 {[%emt 0:04:53]} 15. Bb3 {[%emt 0:13:55]} a6 {[%emt 0:01:53]} 16. Nc4 {[%emt 0:17:26]} Bxg3 {[%emt 0:00:05]} 17. hxg3 {[%emt 0:00:02]} b5 {[%emt 0:01:17]} 18. Ne5 {[%emt 0:00:41]} Rd8 {[%emt 0:00:41]} 19. Ng4 {[%emt 0:05:36]} Nxg4 {[%emt 0:01:21]} 20. Qxg4 {[%emt 0:00:03]} Qb6 {[%emt 0:07:04]} 21. axb5 {[%emt 0:00:52]} axb5 {[%emt 0:00:38]} 22. Ne2 {[%emt 0:10:14]} c5 {[%emt 0:00:17]} 23. dxc5 {[%emt 0:00:20]} Qxc5 {[%emt 0:00:04]} 24. Qf3 {[%emt 0:00:51]} Nc6 {[%emt 0:02:41]} 25. Rc1 {[%emt 0:04:24]} Qb6 {[%emt 0:00:04]} 26. Rfd1 {[%emt 0:00:50]} b4 {[%emt 0:07:03]} 27. Qf4 {[%emt 0:02:30]} Na5 {[%emt 0:06:18]} 28. Rxd8 {[%emt 0:05:57]} Rxd8 {[%emt 0:00:34]} 29. Ba4 {[%emt 0:00:05]} Bg6 {[%emt 0:00:55]} 30. Qe5 {[%emt 0:08:51]} f6 {[%emt 0:24:21]} 31. Qc5 {[%emt 0:01:15]} Qxc5 {[%emt 0:00:04]} 32. Rxc5 {[%emt 0:00:02]} Ra8 {[%emt 0:00:10]} 33. f3 {[%emt 0:10:52]} Nb7 {[%emt 0:04:52]} 34. Rb5 {[%emt 0:00:09]} Rxa4 {[%emt 0:00:03]} 35. Rxb7 {[%emt 0:00:04]} e5 {[%emt 0:00:03]} 36. Kf2 {[%emt 0:03:10]} Bf7 {[%emt 0:00:05]} 37. Ke3 {[%emt 0:00:03]} h5 {[%emt 0:01:25]} 38. f4 {[%emt 0:02:42]} 1/2-1/2

[Event "26th Abu Dhabi Master 2019"]
[Site "Abu Dhabi"]
[Date "2019.08.08"]
[Round "7.2"]
[White "Karthikeyan, Murali"]
[Black "Socko, Bartosz"]
[Result "1/2-1/2"]
[ECO "C11"]
[WhiteElo "2613"]
[BlackElo "2625"]
[Annotator "ChessBase"]
[PlyCount "84"]
[EventDate "2019.08.02"]
[EventType "swiss"]
[EventCountry "UAE"]
[SourceTitle "playchess.com"]
[Source "ChessBase"]
[SourceQuality "1"]
[TimeControl "5400+30"]

1. e4 {[%emt 0:01:24]} e6 {[%emt 0:00:00]} 2. d4 {[%emt 0:00:32]} d5 {[%emt 0:00:00]} 3. Nc3 {[%emt 0:00:04]} Nf6 {[%emt 0:00:00]} 4. e5 {[%emt 0:00:15]} Nfd7 {[%emt 0:00:00]} 5. f4 {[%emt 0:00:07]} c5 {[%emt 0:00:00]} 6. Nf3 {[%emt 0:00:06]} a6 {[%emt 0:00:02]} 7. Be3 {[%emt 0:01:00]} Qb6 {[%emt 0:00:07]} 8. Rb1 {[%emt 0:10:12]} Nc6 {[%emt 0:01:38]} 9. Qd2 {[%emt 0:01:01]} Qa7 {[%emt 0:05:34]} 10. Ne2 {[%emt 0:09:27]} b5 {[%emt 0:03:25]} 11. g3 {[%emt 0:04:56]} Be7 {[%emt 0:02:14]} 12. Bg2 {[%emt 0:03:37]} a5 {[%emt 0:01:03]} 13. O-O {[%emt 0:02:36]} b4 {[%emt 0:02:45]} 14. f5 {[%emt 0:08:02]} Ba6 {[%emt 0:03:45]} 15. fxe6 {[%emt 0:13:02]} fxe6 {[%emt 0:00:23]} 16. Bh3 {[%emt 0:02:49]} Bxe2 {[%emt 0:09:40]} 17. Qxe2 {[%emt 0:00:08]} cxd4 {[%emt 0:05:38]} 18. Bf2 {[%emt 0:01:43]} Qa6 {[%emt 0:02:13]} 19. Qxa6 {[%emt 0:17:47]} Rxa6 {[%emt 0:00:19]} 20. Bxe6 {[%emt 0:00:34]} Ncxe5 {[%emt 0:07:14]} 21. Nxd4 {[%emt 0:03:04]} Nf3+ {[%emt 0:01:26]} 22. Nxf3 {[%emt 0:00:16]} Rxe6 {[%emt 0:00:06]} 23. Rbe1 {[%emt 0:08:31]} Rxe1 {[%emt 0:02:13]} 24. Rxe1 {[%emt 0:00:20]} Kf7 {[%emt 0:00:13]} 25. Rd1 {[%emt 0:06:41]} Nf6 {[%emt 0:00:44]} 26. Bd4 {[%emt 0:00:33]} Rc8 {[%emt 0:02:05]} 27. c3 {[%emt 0:00:14]} Ne4 {[%emt 0:01:00]} 28. cxb4 {[%emt 0:01:06]} axb4 {[%emt 0:00:07]} 29. Ne5+ {[%emt 0:01:07]} Ke6 {[%emt 0:00:20]} 30. Nd3 {[%emt 0:01:46]} g5 {[%emt 0:00:09]} 31. Rc1 {[%emt 0:01:09]} Rxc1+ {[%emt 0:04:02]} 32. Nxc1 {[%emt 0:00:01]} Bc5 {[%emt 0:01:23]} 33. Nb3 {[%emt 0:01:22]} Bxd4+ {[%emt 0:00:10]} 34. Nxd4+ {[%emt 0:00:04]} Kd6 {[%emt 0:00:09]} 35. Kf1 {[%emt 0:00:11]} Nd2+ {[%emt 0:06:58]} 36. Ke2 {[%emt 0:00:17]} Nc4 {[%emt 0:00:06]} 37. b3 {[%emt 0:01:22]} Ne5 {[%emt 0:00:12]} 38. h4 {[%emt 0:00:42]} gxh4 {[%emt 0:00:57]} 39. gxh4 {[%emt 0:00:02]} Kc5 {[%emt 0:05:22]} 40. Ne6+ {[%emt 0:00:11]} Kd6 {[%emt 0:00:05]} 41. Nd4 {[%emt 0:00:06]} Kc5 {[%emt 0:04:54]} 42. Ne6+ {[%emt 0:00:05]} Kd6 {[%emt 0:00:05]} 1/2-1/2